[Event "Kvibergspelen 2022"]
[Site "Kviberg Park Hotel & Conference, Krutvagen 2, Gothenburg, Sweden"]
[Date "2022.10.01"]
[Round "5.19"]
[White "Nackholm, Erik"]
[Black "Ulff, Johan"]
[Result "0-1"]
[TimeControl "15 minutes + 5 seconds per move from move one (Round 1 - 4) / 90 minutes + 30 seconds per move from move one (Round 5 - 8)"]
[WhiteFideId "1721593"]
[BlackFideId "1733893"]
[WhiteElo "1861"]
[BlackElo "2132"]

1. e4 {[%clk 01:30:59]} {[%emt 11:40:38]} Nc6 {[%clk 01:27:51]} {[%emt
00:03:08]} 2. Nf3 {[%clk 01:31:25]} {[%emt 00:00:06]} d6 {[%clk 01:27:34]}
{[%emt 00:00:08]} 3. d4 {[%clk 01:31:22]} {[%emt 00:01:12]} g6 {[%clk
01:27:13]} {[%emt 00:00:50]} 4. h3 {[%clk 01:30:05]} {[%emt 00:01:47]} Bg7
{[%clk 01:27:31]} {[%emt 00:00:12]} 5. c3 {[%clk 01:25:07]} {[%emt 00:05:28]}
Nf6 {[%clk 01:26:04]} {[%emt 00:01:57]} 6. Bd3 {[%clk 01:19:46]} {[%emt
00:05:51]} e5 {[%clk 01:25:13]} {[%emt 00:01:22]} 7. d5 {[%clk 01:15:39]}
{[%emt 00:04:37]} Ne7 {[%clk 01:23:26]} {[%emt 00:02:16]} 8. c4 {[%clk
01:12:31]} {[%emt 00:03:38]} O-O {[%clk 01:18:20]} {[%emt 00:05:37]} 9. Nc3
{[%clk 01:07:20]} {[%emt 00:05:42]} Nd7 {[%clk 01:17:18]} {[%emt 00:01:32]} 10.
Be3 {[%clk 00:48:42]} {[%emt 00:19:08]} f5 {[%clk 01:13:32]} {[%emt 00:04:16]}
11. Ng5 {[%clk 00:43:35]} {[%emt 00:05:36]} Nc5 {[%clk 01:08:57]} {[%emt
00:05:05]} 12. b4 {[%clk 00:37:46]} {[%emt 00:06:19]} Nxd3+ {[%clk 01:02:34]}
{[%emt 00:06:55]} 13. Qxd3 {[%clk 00:37:52]} {[%emt 00:00:23]} f4 {[%clk
01:02:22]} {[%emt 00:00:42]} 14. Bd2 {[%clk 00:32:27]} {[%emt 00:05:55]} h6
{[%clk 00:58:54]} {[%emt 00:03:59]} 15. Nf3 {[%clk 00:29:15]} {[%emt 00:03:41]}
c6 {[%clk 00:44:53]} {[%emt 00:14:31]} 16. O-O-O {[%clk 00:16:33]} {[%emt
00:13:11]} cxd5 {[%clk 00:41:47]} {[%emt 00:03:36]} 17. cxd5 {[%clk 00:15:41]}
{[%emt 00:01:22]} Bd7 {[%clk 00:41:07]} {[%emt 00:01:09]} 18. Be1 {[%clk
00:07:21]} {[%emt 00:08:50]} Qb6 {[%clk 00:39:32]} {[%emt 00:02:06]} 19. Qb1
{[%clk 00:04:22]} {[%emt 00:03:30]} Rfc8 {[%clk 00:36:52]} {[%emt 00:03:09]} 20.
Kd2 {[%clk 00:04:33]} {[%emt 00:00:19]} Rc4 {[%clk 00:35:46]} {[%emt 00:01:36]}
21. a3 {[%clk 00:04:35]} {[%emt 00:00:28]} Rac8 {[%clk 00:36:06]} {[%emt
00:00:09]} 22. Rc1 {[%clk 00:04:54]} {[%emt 00:00:12]} a5 {[%clk 00:35:25]}
{[%emt 00:01:11]} 23. b5 {[%clk 00:04:45]} {[%emt 00:00:39]} Bxb5 {[%clk
00:25:23]} {[%emt 00:10:32]} 24. a4 {[%clk 00:04:26]} {[%emt 00:00:49]} Rb4
{[%clk 00:25:12]} {[%emt 00:00:40]} 25. Nxb5 {[%clk 00:02:22]} {[%emt
00:02:34]} Rxb1 {[%clk 00:25:39]} {[%emt 00:00:03]} 26. Rxb1 {[%clk 00:02:44]}
{[%emt 00:00:09]} Qc5 {[%clk 00:22:06]} {[%emt 00:04:03]} 27. Ke2 {[%clk
00:01:59]} {[%emt 00:01:15]} Qc4+ {[%clk 00:22:15]} {[%emt 00:00:21]} 0-1

[Event "Kvibergspelen 2022"]
[Site "Kviberg Park Hotel & Conference, Krutvagen 2, Gothenburg, Sweden"]
[Date "2022.10.01"]
[Round "6.1"]
[White "Abdrlauf, Elham"]
[Black "Hillarp, Tiger"]
[Result "0-1"]
[TimeControl "15 minutes + 5 seconds per move from move one (Round 1 - 4) / 90 minutes + 30 seconds per move from move one (Round 5 - 8)"]
[WhiteTitle "IM"]
[BlackTitle "GM"]
[WhiteFideId "1533533"]
[BlackFideId "1700812"]
[WhiteElo "2487"]
[BlackElo "2511"]

1. e4 {[%clk 01:29:22]} {[%emt 00:01:36]} c6 {[%clk 01:30:52]} {[%emt
00:00:10]} 2. d4 {[%clk 01:29:20]} {[%emt 00:00:31]} d5 {[%clk 01:31:16]}
{[%emt 00:00:07]} 3. Nc3 {[%clk 01:27:32]} {[%emt 00:02:17]} dxe4 {[%clk
01:31:39]} {[%emt 00:00:07]} 4. Nxe4 {[%clk 01:27:57]} {[%emt 00:00:06]} Bf5
{[%clk 01:32:03]} {[%emt 00:00:06]} 5. Ng3 {[%clk 01:28:20]} {[%emt 00:00:06]}
Bg6 {[%clk 01:32:27]} {[%emt 00:00:07]} 6. h4 {[%clk 01:28:42]} {[%emt
00:00:06]} h6 {[%clk 01:32:54]} {[%emt 00:00:04]} 7. Nf3 {[%clk 01:29:05]}
{[%emt 00:00:07]} Nd7 {[%clk 01:33:18]} {[%emt 00:00:07]} 8. h5 {[%clk
01:29:28]} {[%emt 00:00:07]} Bh7 {[%clk 01:33:42]} {[%emt 00:00:06]} 9. Bd3
{[%clk 01:29:51]} {[%emt 00:00:06]} Bxd3 {[%clk 01:34:07]} {[%emt 00:00:06]} 10.
Qxd3 {[%clk 01:30:17]} {[%emt 00:00:04]} e6 {[%clk 01:34:28]} {[%emt 00:00:09]}
11. Bd2 {[%clk 01:29:35]} {[%emt 00:01:10]} Ngf6 {[%clk 01:34:43]} {[%emt
00:00:16]} 12. O-O-O {[%clk 01:29:53]} {[%emt 00:00:11]} Be7 {[%clk 01:35:01]}
{[%emt 00:00:13]} 13. Qe2 {[%clk 01:30:15]} {[%emt 00:00:09]} O-O {[%clk
01:34:21]} {[%emt 00:01:10]} 14. Nf1 {[%clk 01:30:22]} {[%emt 00:00:23]} Nb6
{[%clk 01:33:57]} {[%emt 00:00:54]} 15. Kb1 {[%clk 01:23:21]} {[%emt 00:07:30]}
Qd5 {[%clk 01:32:29]} {[%emt 00:01:58]} 16. Ne3 {[%clk 01:15:35]} {[%emt
00:08:16]} Qe4 {[%clk 01:32:04]} {[%emt 00:00:56]} 17. Bc1 {[%clk 00:55:40]}
{[%emt 00:20:24]} Rad8 {[%clk 01:15:17]} {[%emt 00:17:18]} 18. Rh4 {[%clk
00:38:15]} {[%emt 00:17:54]} Qh7 {[%clk 01:15:10]} {[%emt 00:00:38]} 19. g4
{[%clk 00:38:24]} {[%emt 00:00:20]} Ne4 {[%clk 01:12:42]} {[%emt 00:02:58]} 20.
Rhh1 {[%clk 00:38:02]} {[%emt 00:00:52]} c5 {[%clk 01:11:39]} {[%emt 00:01:34]}
21. Rhe1 {[%clk 00:37:25]} {[%emt 00:01:06]} cxd4 {[%clk 00:54:02]} {[%emt
00:18:07]} 22. Ng2 {[%clk 00:36:43]} {[%emt 00:01:11]} Nc5 {[%clk 00:50:07]}
{[%emt 00:04:27]} 23. Nxd4 {[%clk 00:33:45]} {[%emt 00:03:27]} Bf6 {[%clk
00:47:27]} {[%emt 00:03:10]} 24. Nb3 {[%clk 00:31:59]} {[%emt 00:02:16]} Nca4
{[%clk 00:45:53]} {[%emt 00:02:05]} 25. Nf4 {[%clk 00:20:07]} {[%emt 00:12:23]}
Rc8 {[%clk 00:37:17]} {[%emt 00:09:05]} 26. Qe4 {[%clk 00:00:34]} {[%emt
00:20:02]} Qxe4 {[%clk 00:28:05]} {[%emt 00:09:43]} 27. Rxe4 {[%clk 00:01:01]}
{[%emt 00:00:03]} Nc4 {[%clk 00:28:28]} {[%emt 00:00:07]} 28. Nd3 {[%clk
00:00:32]} {[%emt 00:01:00]} Na3+ {[%clk 00:28:40]} {[%emt 00:00:17]} 29. Ka1
{[%clk 00:01:00]} {[%emt 00:00:01]} Nxc2+ {[%clk 00:29:00]} {[%emt 00:00:10]}
30. Kb1 {[%clk 00:01:28]} {[%emt 00:00:05]} Na3+ {[%clk 00:28:55]} {[%emt
00:00:33]} 31. Ka1 {[%clk 00:01:57]} Nc4 {[%clk 00:28:30]} {[%emt 00:00:54]} 32.
Nd2 {[%clk 00:00:43]} {[%emt 00:01:44]} Ncb6 {[%clk 00:16:49]} {[%emt
00:12:11]} 33. Ree1 {[%clk 00:01:02]} {[%emt 00:00:11]} Rfd8 {[%clk 00:16:53]}
{[%emt 00:00:26]} 34. Ne4 {[%clk 00:01:18]} {[%emt 00:00:14]} Bd4 {[%clk
00:13:28]} {[%emt 00:03:55]} 35. a3 {[%clk 00:01:46]} {[%emt 00:00:02]} Nd5
{[%clk 00:13:30]} {[%emt 00:00:28]} 36. Bd2 {[%clk 00:01:08]} {[%emt 00:01:08]}
Nf6 {[%clk 00:11:11]} {[%emt 00:02:49]} 37. Nxf6+ {[%clk 00:00:44]} {[%emt
00:00:53]} Bxf6 {[%clk 00:11:34]} {[%emt 00:00:07]} 38. Bc1 {[%clk 00:00:48]}
{[%emt 00:00:26]} Rxc1+ {[%clk 00:09:31]} {[%emt 00:02:33]} 39. Rxc1 {[%clk
00:00:38]} {[%emt 00:00:41]} Rxd3 {[%clk 00:09:53]} {[%emt 00:00:08]} 40. Rc8+
{[%clk 00:00:52]} {[%emt 00:00:15]} Kh7 {[%clk 00:09:36]} {[%emt 00:00:47]} 41.
Re3 {[%clk 00:00:31]} {[%emt 00:00:51]} Bxb2+ {[%clk 00:07:05]} {[%emt
00:03:02]} 42. Ka2 {[%clk 00:00:55]} {[%emt 00:00:07]} Rxe3 {[%clk 00:07:28]}
{[%emt 00:00:06]} 43. fxe3 {[%clk 00:01:20]} {[%emt 00:00:04]} Be5 {[%clk
00:07:50]} {[%emt 00:00:08]} 44. Kb3 {[%clk 00:00:45]} {[%emt 00:01:05]} Nb6
{[%clk 00:08:05]} {[%emt 00:00:16]} 45. Rf8 {[%clk 00:00:58]} {[%emt 00:00:17]}
Nd5 {[%clk 00:07:53]} {[%emt 00:00:42]} 46. Rxf7 {[%clk 00:00:41]} {[%emt
00:00:47]} Nxe3 {[%clk 00:07:57]} {[%emt 00:00:26]} 47. Re7 {[%clk 00:00:43]}
{[%emt 00:00:27]} Bf6 {[%clk 00:07:40]} {[%emt 00:00:47]} 48. Rxe6 {[%clk
00:00:43]} {[%emt 00:00:31]} Nxg4 {[%clk 00:08:03]} {[%emt 00:00:06]} 49. a4
{[%clk 00:01:03]} {[%emt 00:00:11]} Bg5 {[%clk 00:05:03]} {[%emt 00:03:30]} 50.
Re1 {[%clk 00:00:52]} {[%emt 00:00:41]} Nf6 {[%clk 00:05:21]} {[%emt 00:00:12]}
51. Rh1 {[%clk 00:01:18]} {[%emt 00:00:03]} Kg8 {[%clk 00:05:37]} {[%emt
00:00:15]} 52. Kc4 {[%clk 00:01:42]} {[%emt 00:00:06]} Kf7 {[%clk 00:05:53]}
{[%emt 00:00:13]} 53. Rb1 {[%clk 00:02:06]} {[%emt 00:00:07]} b6 {[%clk
00:06:10]} {[%emt 00:00:13]} 54. Rh1 {[%clk 00:02:04]} {[%emt 00:00:32]} a5
{[%clk 00:06:06]} {[%emt 00:00:34]} 55. Rh3 {[%clk 00:02:19]} {[%emt 00:00:14]}
Ke6 {[%clk 00:01:25]} {[%emt 00:05:12]} 56. Kb5 {[%clk 00:02:33]} {[%emt
00:00:15]} Nd5 {[%clk 00:01:04]} {[%emt 00:00:51]} 57. Kc6 {[%clk 00:02:33]}
{[%emt 00:00:31]} Be3 {[%clk 00:01:07]} {[%emt 00:00:27]} 58. Rg3 {[%clk
00:01:30]} {[%emt 00:01:33]} Ne7+ {[%clk 00:01:27]} {[%emt 00:00:09]} 59. Kb5
{[%clk 00:01:10]} {[%emt 00:00:49]} Nf5 {[%clk 00:01:28]} {[%emt 00:00:29]} 60.
Rg4 {[%clk 00:01:03]} {[%emt 00:00:37]} Bc5 {[%clk 00:01:14]} {[%emt 00:00:45]}
61. Kc6 {[%clk 00:01:09]} {[%emt 00:00:24]} Ne7+ {[%clk 00:01:16]} {[%emt
00:00:28]} 62. Kb5 {[%clk 00:00:51]} {[%emt 00:00:49]} Kf6 {[%clk 00:01:20]}
{[%emt 00:00:26]} 63. Kc4 {[%clk 00:00:55]} {[%emt 00:00:25]} Ng8 {[%clk
00:01:14]} {[%emt 00:00:36]} 64. Rf4+ {[%clk 00:01:04]} {[%emt 00:00:22]} Ke6
{[%clk 00:01:31]} {[%emt 00:00:13]} 65. Re4+ {[%clk 00:00:45]} {[%emt
00:00:49]} Kf7 {[%clk 00:01:50]} {[%emt 00:00:09]} 66. Kb5 {[%clk 00:00:31]}
{[%emt 00:00:45]} Nf6 {[%clk 00:02:07]} {[%emt 00:00:13]} 67. Re5 {[%clk
00:01:00]} {[%emt 00:00:02]} Bd4 {[%clk 00:02:26]} {[%emt 00:00:10]} 68. Rf5
{[%clk 00:01:22]} {[%emt 00:00:08]} Ke6 {[%clk 00:02:48]} {[%emt 00:00:08]} 69.
Rf4 {[%clk 00:01:50]} {[%emt 00:00:02]} Bc5 {[%clk 00:03:07]} {[%emt 00:00:12]}
70. Rh4 {[%clk 00:02:01]} {[%emt 00:00:18]} Kf5 {[%clk 00:03:30]} {[%emt
00:00:08]} 71. Rh2 {[%clk 00:02:23]} {[%emt 00:00:07]} Kg5 {[%clk 00:03:53]}
{[%emt 00:00:07]} 72. Rg2 {[%clk 00:02:43]} {[%emt 00:00:10]} Ng4 {[%clk
00:04:07]} {[%emt 00:00:16]} 73. Rc2 {[%clk 00:03:10]} {[%emt 00:00:04]} Kxh5
{[%clk 00:04:20]} {[%emt 00:00:17]} 74. Rxc5 {[%clk 00:03:32]} {[%emt
00:00:08]} bxc5 {[%clk 00:04:41]} {[%emt 00:00:09]} 75. Kxa5 {[%clk 00:04:00]}
{[%emt 00:00:02]} c4 {[%clk 00:04:09]} {[%emt 00:01:01]} 76. Kb4 {[%clk
00:04:24]} {[%emt 00:00:07]} Ne5 {[%clk 00:04:32]} {[%emt 00:00:07]} 0-1

[Event "Kvibergspelen 2022"]
[Site "Kviberg Park Hotel & Conference, Krutvagen 2, Gothenburg, Sweden"]
[Date "2022.10.01"]
[Round "6.2"]
[White "Hamark, Jesper"]
[Black "Stefansson, Vignir Vatnar"]
[Result "1/2-1/2"]
[TimeControl "15 minutes + 5 seconds per move from move one (Round 1 - 4) / 90 minutes + 30 seconds per move from move one (Round 5 - 8)"]
[BlackTitle "IM"]
[WhiteFideId "1704338"]
[BlackFideId "2308649"]
[WhiteElo "2348"]
[BlackElo "2452"]

1. e4 {[%clk 01:30:43]} {[%emt 00:00:12]} e6 {[%clk 01:30:16]} {[%emt
00:00:44]} 2. d4 {[%clk 01:30:13]} {[%emt 00:01:00]} d5 {[%clk 01:30:40]}
{[%emt 00:00:07]} 3. e5 {[%clk 01:30:39]} {[%emt 00:00:05]} c5 {[%clk
01:31:04]} {[%emt 00:00:05]} 4. c3 {[%clk 01:31:06]} {[%emt 00:00:03]} Qb6
{[%clk 01:31:30]} {[%emt 00:00:05]} 5. Nf3 {[%clk 01:31:08]} {[%emt 00:00:28]}
Bd7 {[%clk 01:31:55]} {[%emt 00:00:04]} 6. Bd3 {[%clk 01:27:09]} {[%emt
00:04:29]} cxd4 {[%clk 01:31:14]} {[%emt 00:01:11]} 7. O-O {[%clk 01:27:27]}
{[%emt 00:00:12]} Bb5 {[%clk 01:30:44]} {[%emt 00:01:00]} 8. Bxb5+ {[%clk
01:24:47]} {[%emt 00:03:11]} Qxb5 {[%clk 01:31:07]} {[%emt 00:00:06]} 9. cxd4
{[%clk 01:25:13]} {[%emt 00:00:04]} Nc6 {[%clk 01:29:46]} {[%emt 00:01:51]} 10.
Nc3 {[%clk 01:25:27]} {[%emt 00:00:16]} Qb6 {[%clk 01:29:32]} {[%emt 00:00:44]}
11. Na4 {[%clk 01:13:49]} {[%emt 00:12:08]} Qc7 {[%clk 01:29:39]} {[%emt
00:00:23]} 12. Qd3 {[%clk 01:04:08]} {[%emt 00:10:11]} a6 {[%clk 01:21:34]}
{[%emt 00:08:35]} 13. Bd2 {[%clk 01:01:30]} {[%emt 00:03:08]} b5 {[%clk
01:21:19]} {[%emt 00:00:45]} 14. Nc3 {[%clk 01:01:44]} {[%emt 00:00:15]} Nge7
{[%clk 01:14:32]} {[%emt 00:07:17]} 15. Rfc1 {[%clk 01:01:48]} {[%emt
00:00:27]} Qb7 {[%clk 01:10:11]} {[%emt 00:04:52]} 16. Ne2 {[%clk 00:56:34]}
{[%emt 00:05:43]} Ng6 {[%clk 00:51:30]} {[%emt 00:19:10]} 17. Rc2 {[%clk
00:42:58]} {[%emt 00:14:06]} Be7 {[%clk 00:45:55]} {[%emt 00:06:06]} 18. Rac1
{[%clk 00:41:59]} {[%emt 00:01:29]} Rc8 {[%clk 00:46:05]} {[%emt 00:00:20]} 19.
g3 {[%clk 00:41:30]} {[%emt 00:00:59]} h6 {[%clk 00:42:47]} {[%emt 00:03:47]}
20. Kg2 {[%clk 00:40:16]} {[%emt 00:01:45]} Kd7 {[%clk 00:41:53]} {[%emt
00:01:24]} 21. Qe3 {[%clk 00:31:33]} {[%emt 00:09:13]} Rhd8 {[%clk 00:38:12]}
{[%emt 00:04:10]} 22. Nf4 {[%clk 00:30:20]} {[%emt 00:01:43]} Nxf4+ {[%clk
00:36:23]} {[%emt 00:02:19]} 23. Qxf4 {[%clk 00:30:48]} {[%emt 00:00:02]} Ke8
{[%clk 00:36:44]} {[%emt 00:00:10]} 24. h4 {[%clk 00:30:18]} {[%emt 00:00:59]}
Na7 {[%clk 00:35:48]} {[%emt 00:01:27]} 25. Ba5 {[%clk 00:22:33]} {[%emt
00:08:15]} Rxc2 {[%clk 00:36:07]} {[%emt 00:00:11]} 26. Rxc2 {[%clk 00:23:02]}
Rc8 {[%clk 00:36:29]} {[%emt 00:00:08]} 27. Qc1 {[%clk 00:23:18]} {[%emt
00:00:14]} Rc4 {[%clk 00:35:07]} {[%emt 00:01:52]} 28. Bd2 {[%clk 00:16:43]}
{[%emt 00:07:06]} Qc6 {[%clk 00:34:08]} {[%emt 00:01:28]} 29. Ne1 {[%clk
00:17:01]} {[%emt 00:00:12]} b4 {[%clk 00:26:23]} {[%emt 00:08:16]} 30. b3
{[%clk 00:16:36]} {[%emt 00:00:55]} Rxc2 {[%clk 00:26:47]} {[%emt 00:00:05]} 31.
Qxc2 {[%clk 00:16:38]} {[%emt 00:00:29]} a5 {[%clk 00:25:57]} {[%emt 00:01:19]}
32. h5 {[%clk 00:14:57]} {[%emt 00:02:12]} Qxc2 {[%clk 00:19:41]} {[%emt
00:06:46]} 33. Nxc2 {[%clk 00:15:24]} {[%emt 00:00:02]} f6 {[%clk 00:19:55]}
{[%emt 00:00:16]} 34. exf6 {[%clk 00:13:50]} {[%emt 00:02:05]} Bxf6 {[%clk
00:20:17]} {[%emt 00:00:08]} 35. Kf3 {[%clk 00:13:57]} {[%emt 00:00:23]} Nb5
{[%clk 00:19:48]} {[%emt 00:01:00]} 36. Ke3 {[%clk 00:14:05]} {[%emt 00:00:22]}
Kd7 {[%clk 00:20:12]} {[%emt 00:00:06]} 37. Kd3 {[%clk 00:14:07]} {[%emt
00:00:28]} Kc6 {[%clk 00:19:50]} {[%emt 00:00:52]} 38. g4 {[%clk 00:13:24]}
{[%emt 00:01:14]} Be7 {[%clk 00:19:36]} {[%emt 00:00:43]} 39. f3 {[%clk
00:13:06]} {[%emt 00:00:48]} Na7 {[%clk 00:19:40]} {[%emt 00:00:27]} 40. Bf4
{[%clk 00:11:36]} {[%emt 00:02:00]} Bf6 {[%clk 00:17:02]} {[%emt 00:03:07]} 41.
a4 {[%clk 00:10:44]} {[%emt 00:01:22]} bxa3 {[%clk 00:09:59]} {[%emt 00:07:34]}
42. Nxa3 {[%clk 00:10:54]} {[%emt 00:00:21]} Kd7 {[%clk 00:09:39]} {[%emt
00:00:49]} 43. Bd2 {[%clk 00:08:57]} {[%emt 00:02:26]} Be7 {[%clk 00:09:18]}
{[%emt 00:00:52]} 44. Nc2 {[%clk 00:09:09]} {[%emt 00:00:18]} Nc6 {[%clk
00:09:43]} {[%emt 00:00:04]} 45. f4 {[%clk 00:07:46]} {[%emt 00:01:54]} Bd6
{[%clk 00:09:40]} {[%emt 00:00:32]} 46. Ke3 {[%clk 00:04:53]} {[%emt 00:03:23]}
Bc7 {[%clk 00:09:38]} {[%emt 00:00:33]} 47. Kf3 {[%clk 00:04:56]} {[%emt
00:00:26]} Bb6 {[%clk 00:09:49]} {[%emt 00:00:20]} 48. Bc3 {[%clk 00:05:18]}
{[%emt 00:00:08]} Ke7 {[%clk 00:10:08]} {[%emt 00:00:10]} 49. Ke2 {[%clk
00:04:20]} {[%emt 00:01:27]} Kf7 {[%clk 00:10:09]} {[%emt 00:00:30]} 50. Kd3
{[%clk 00:04:44]} {[%emt 00:00:07]} g6 {[%clk 00:10:05]} {[%emt 00:00:34]} 51.
hxg6+ {[%clk 00:04:50]} {[%emt 00:00:24]} Kxg6 {[%clk 00:10:31]} {[%emt
00:00:04]} 52. Ne3 {[%clk 00:04:48]} {[%emt 00:00:32]} Ne7 {[%clk 00:10:35]}
{[%emt 00:00:25]} 53. Be1 {[%clk 00:01:17]} {[%emt 00:04:01]} Kf7 {[%clk
00:06:58]} {[%emt 00:04:08]} 54. Bh4 {[%clk 00:00:45]} {[%emt 00:01:02]} Ng6
{[%clk 00:06:41]} {[%emt 00:00:46]} 55. Bg3 {[%clk 00:01:14]} {[%emt 00:00:01]}
Bc7 {[%clk 00:07:01]} {[%emt 00:00:10]} 56. Ng2 {[%clk 00:01:33]} {[%emt
00:00:11]} Ne7 {[%clk 00:07:18]} {[%emt 00:00:13]} 57. Bh4 {[%clk 00:01:26]}
{[%emt 00:00:38]} Nc6 {[%clk 00:05:46]} {[%emt 00:02:01]} 58. Be1 {[%clk
00:01:52]} {[%emt 00:00:04]} Bb6 {[%clk 00:05:00]} {[%emt 00:01:17]} 59. Bc3
{[%clk 00:02:11]} {[%emt 00:00:11]} Ne7 {[%clk 00:05:21]} {[%emt 00:00:09]} 60.
Be1 {[%clk 00:02:07]} {[%emt 00:00:33]} Nc8 {[%clk 00:05:20]} {[%emt 00:00:31]}
61. Nh4 {[%clk 00:01:23]} {[%emt 00:01:14]} Bc7 {[%clk 00:05:25]} {[%emt
00:00:26]} 62. Ke4 {[%clk 00:00:56]} {[%emt 00:00:15]} 1/2-1/2

[Event "Kvibergspelen 2022"]
[Site "Kviberg Park Hotel & Conference, Krutvagen 2, Gothenburg, Sweden"]
[Date "2022.10.01"]
[Round "6.3"]
[White "Mitusov, Semen"]
[Black "Golubka, Petro"]
[Result "1/2-1/2"]
[TimeControl "15 minutes + 5 seconds per move from move one (Round 1 - 4) / 90 minutes + 30 seconds per move from move one (Round 5 - 8)"]
[WhiteTitle "FM"]
[BlackTitle "GM"]
[WhiteFideId "14151049"]
[BlackFideId "14114224"]
[WhiteElo "2418"]
[BlackElo "2360"]

1. e4 {[%clk 01:30:59]} {[%emt 00:00:03]} g6 {[%clk 01:24:49]} {[%emt
00:06:10]} 2. d4 {[%clk 01:31:07]} {[%emt 00:00:21]} Bg7 {[%clk 01:25:02]}
{[%emt 00:00:17]} 3. Nc3 {[%clk 01:31:22]} {[%emt 00:00:15]} d6 {[%clk
01:25:26]} {[%emt 00:00:06]} 4. Be3 {[%clk 01:31:16]} {[%emt 00:00:35]} a6
{[%clk 01:25:51]} {[%emt 00:00:06]} 5. h4 {[%clk 01:31:40]} {[%emt 00:00:04]}
h6 {[%clk 01:26:15]} {[%emt 00:00:05]} 6. h5 {[%clk 01:29:14]} {[%emt
00:02:59]} g5 {[%clk 01:26:32]} {[%emt 00:00:13]} 7. Qd2 {[%clk 01:26:29]}
{[%emt 00:03:14]} Nf6 {[%clk 01:23:02]} {[%emt 00:04:00]} 8. f3 {[%clk
01:23:33]} {[%emt 00:03:26]} b5 {[%clk 01:21:34]} {[%emt 00:01:57]} 9. O-O-O
{[%clk 01:23:25]} {[%emt 00:00:39]} Bb7 {[%clk 01:21:08]} {[%emt 00:00:56]} 10.
Qe1 {[%clk 01:20:16]} {[%emt 00:03:38]} Nbd7 {[%clk 01:19:03]} {[%emt
00:02:36]} 11. e5 {[%clk 01:18:52]} {[%emt 00:01:54]} Nd5 {[%clk 01:14:58]}
{[%emt 00:04:34]} 12. Nxd5 {[%clk 01:19:05]} {[%emt 00:00:18]} Bxd5 {[%clk
01:15:24]} {[%emt 00:00:04]} 13. f4 {[%emt 00:05:01]} gxf4 {[%clk 01:10:57]} 14.
Bxf4 {[%clk 01:16:21]} {[%emt 00:03:40]} Nf8 {[%clk 01:04:49]} {[%emt
00:06:38]} 15. Ne2 {[%clk 01:11:57]} {[%emt 00:04:54]} Ne6 {[%clk 01:04:55]}
{[%emt 00:00:24]} 16. Bg3 {[%clk 01:10:26]} {[%emt 00:02:01]} Qd7 {[%clk
01:03:13]} {[%emt 00:02:12]} 17. Nc3 {[%clk 01:06:17]} {[%emt 00:04:39]} Bb7
{[%clk 00:55:29]} {[%emt 00:08:12]} 1/2-1/2